bitfinex/quotes_ETHUSD_20230113
["timestamp","ask_amount","ask_price","bid_price","bid_amount"]
[1673648721384,8.227542,1459.5,1459.4,1.69955287]
[1673648721694,15.135232,1459.5,1459.3,1.06826522]
[1673648721971,15.135232,1459.5,1459.3,1.00226522]
[1673648722120,15.135232,1459.5,1459.2,2.56655989]
[1673648722325,13.75938,1459.5,1459.3,1.6996341]
[1673648722992,13.75938,1459.5,1459.3,2.70189932]
[1673648723181,13.75938,1459.5,1459.2,1.12916206]
[1673648723496,13.75938,1459.5,1459.3,1.69966713]
[1673648723709,0.056,1459.5,1459.3,1.69966713]
[1673648723944,6.86119,1459.6,1459.3,1.69966713]
[1673648723945,6.90726,1459.6,1459.3,1.69966713]
[1673648724156,8.284103,1459.6,1459.2,1.12916206]
[1673648724366,8.284103,1459.6,1459.3,1.6996376]
[1673648724688,15.135363,1459.6,1459.3,1.6996376]
[1673648724863,1.432843,1459.6,1459.3,1.6996376]
[1673648725079,1.376843,1459.6,1459.3,1.6996376]
[1673648725582,8.228043,1459.6,1459.3,1.6996376]
[1673648725793,1.432843,1459.6,1459.3,1.6996376]
[1673648726136,0.1432843,1459.5,1459.3,8.5522076]
[1673648726321,7.00347658,1459.5,1459.3,0.066]
[1673648726538,7.05947658,1459.5,1459.2,1.06316206]
[1673648726755,13.91123658,1459.5,1459.3,1.69961501]
[1673648727083,20.76299658,1459.5,1459.3,1.69961501]
[1673648727293,13.91123658,1459.5,1459.3,1.69961501]
[1673648727500,6.91635228,1459.5,1459.3,1.69961501]
[1673648727713,0.056,1459.5,1459.2,4.2661749]
[1673648727938,13.70337,1459.5,1459.3,1.69957194]
[1673648728152,13.75937,1459.5,1459.3,1.69957194]
[1673648728358,0.056,1459.5,1459.3,1.69957194]
[1673648728573,0.056,1459.6,1459.3,11.98593203]
[1673648728905,0.056,1459.7,1459.4,1.69957194]
[1673648729115,0.056,1459.8,1459.4,8.55151194]
[1673648729441,13.75607,1459.9,1459.4,13.77007]
[1673648729657,20.60628,1459.9,1459.4,10.35177009]
[1673648729873,0.056,1459.9,1459.5,3.43383009]
[1673648730031,0.056,1459.9,1459.4,1.06826522]
[1673648730032,20.54972,1459.9,1459.4,1.06826522]
[1673648730236,20.54972,1459.9,1459.5,1.69936862]
[1673648730237,20.60572,1459.9,1459.5,1.69936862]
[1673648730453,20.61415228,1459.9,1459.5,1.69936862]
[1673648730711,13.70144,1459.7,1459.4,3.066]
[1673648730917,6.90672,1459.7,1459.5,1.69939892]
[1673648731082,6.90672,1459.7,1459.4,4.06826522]
[1673648731291,13.75744,1459.7,1459.5,1.69937352]
[1673648731618,6.90672,1459.7,1459.5,1.69937352]
[1673648731819,6.90672,1459.7,1459.4,4.06826522]
[1673648732029,6.90672,1459.7,1459.5,1.69936408]
[1673648732235,6.90672,1459.7,1459.4,4.00226522]
[1673648732236,20.60816,1459.7,1459.4,0.066]
[1673648732494,3.43383009,1459.6,1459.3,1.00226522]
[1673648732662,13.70332,1459.5,1459.2,1.12916206]
[1673648733009,13.75932,1459.5,1459.3,1.69960287]
[1673648733197,0.056,1459.5,1459.3,1.69960287]
[1673648733407,12.74642233,1459.6,1459.3,1.69960287]
[1673648733615,5.89487233,1459.6,1459.3,1.69960287]
[1673648733827,3.48983009,1459.6,1459.3,1.69960287]
[1673648734075,10.28511009,1459.6,1459.3,1.69960287]
[1673648734299,17.19239009,1459.6,1459.3,1.69960287]
[1673648735636,0.056,1459.6,1459.3,1.69960287]
[1673648735812,13.76632228,1459.7,1459.3,1.69960287]
[1673648736020,1.37201923,1459.6,1459.3,8.55196287]
[1673648736272,8.22324923,1459.6,1459.3,0.066]
[1673648736489,8.27921923,1459.6,1459.2,7.98198206]
[1673648736699,0.82792192,1459.5,1459.3,1.69960534]
[1673648737330,15.14073923,1459.6,1459.3,1.69960534]
[1673648737331,0.066,1459.6,1459.3,1.69960534]
[1673648737499,20.55378,1459.6,1459.3,2.70187056]
[1673648737707,3.43383009,1459.5,1459.2,0.12689684]
[1673648737952,23.99022009,1459.4,1459.2,0.06089684]
[1673648738280,16.10422201,1459.3,1459.2,0.06089684]
[1673648738597,2.45502201,1459.3,1459.2,0.06089684]
[1673648738751,16.10422201,1459.3,1459.2,0.06089684]
[1673648738964,2.45502201,1459.3,1459.2,0.06089684]
[1673648739169,13.77014,1459.5,1459.3,2.71954446]
[1673648739383,13.75964,1459.5,1459.3,2.71954446]
[1673648740250,3.43383009,1459.4,1459.3,2.71954446]
[1673648740687,26.99022009,1459.4,1459.3,2.71954446]
[1673648741009,27.53872569,1459.4,1459.3,2.71954446]
[1673648741848,20.68659569,1459.4,1459.3,2.71954446]
[1673648742013,13.83446569,1459.4,1459.2,0.06089684]
[1673648742339,10.34196009,1459.4,1459.2,0.06089684]
[1673648742551,17.19409009,1459.4,1459.2,0.06089684]
[1673648742958,24.04622009,1459.4,1459.2,0.06089684]
[1673648743165,17.19409009,1459.4,1459.2,0.06089684]
[1673648744059,24.04622009,1459.4,1459.2,0.06089684]
[1673648744683,16.10982201,1459.3,1459.2,0.06089684]
[1673648744857,23.01842201,1459.3,1459.2,0.06089684]
[1673648747588,26.4522521,1459.3,1459.2,9.684e-05]
[1673648747804,26.6822521,1459.3,1459.2,9.684e-05]
[1673648748058,29.6822521,1459.3,1459.2,9.684e-05]
[1673648749048,16.16582201,1459.3,1459.2,9.684e-05]
[1673648749261,13.7612,1459.3,1459.2,9.684e-05]
[1673648749509,0.056,1459.3,1459.2,9.684e-05]
[1673648749730,6.90799,1459.5,1459.2,9.684e-05]
[1673648749903,6.90766,1459.5,1459.2,9.684e-05]
[1673648750114,0.690766,1459.4,1459.2,9.684e-05]
[1673648750648,7.542926,1459.4,1459.2,9.684e-05]
[1673648750834,21.303886,1459.4,1459.2,9.684e-05]
[1673648751045,21.31231828,1459.4,1459.2,9.684e-05]
[1673648751309,28.16479828,1459.4,1459.2,9.684e-05]
[1673648751469,23.60427983,1459.3,1459.2,9.684e-05]
[1673648751675,30.99327983,1459.3,1459.2,9.684e-05]
[1673648751887,33.99327983,1459.3,1459.2,9.684e-05]
[1673648752217,26.66027983,1459.3,1459.2,9.684e-05]
[1673648753625,30.09410992,1459.3,1459.2,9.684e-05]
[1673648764667,29.86410992,1459.3,1459.2,9.684e-05]
[1673648764816,26.86410992,1459.3,1459.2,9.684e-05]
[1673648765873,27.09410992,1459.3,1459.2,9.684e-05]
[1673648766720,23.43027983,1459.3,1459.2,9.684e-05]
[1673648767768,0.056,1459.3,1459.2,9.684e-05]
[1673648768137,0.056,1459.4,1459.2,9.684e-05]
[1673648768338,6.90747,1459.6,1459.2,6.85315684]
[1673648768551,3.43383009,1459.5,1459.2,6.91915684]
[1673648768916,16.15607474,1459.6,1459.2,0.06609684]
[1673648769186,6.85166,1459.5,1459.2,9.684e-05]
[1673648769496,6.90766,1459.5,1459.2,9.684e-05]
[1673648769654,13.75932,1459.5,1459.2,9.684e-05]
[1673648769864,6.90766,1459.5,1459.2,9.684e-05]
[1673648770119,0.056,1459.5,1459.2,9.684e-05]
[1673648770336,6.90684,1459.7,1459.2,1.6998401]
[1673648770499,13.75793,1459.7,1459.2,3.00009684]
[1673648770970,13.75793,1459.7,1459.3,1.69963319]
[1673648772492,13.75793,1459.7,1459.3,2.70189841]
[1673648772730,13.75793,1459.7,1459.3,1.69963319]
[1673648772731,13.7550065,1459.7,1459.3,1.69963319]
[1673648772954,13.7550065,1459.7,1459.3,1.00226522]
[1673648773225,0.056,1459.7,1459.3,13.70518]
[1673648773396,1.01717595,1459.9,1459.4,0.034]
[1673648773547,1.01717595,1459.9,1459.5,6.85142]
[1673648773924,7.86710595,1459.9,1459.5,0.066]
[1673648774073,7.92310595,1459.9,1459.4,6.85205]
[1673648774287,7.92313595,1459.9,1459.4,6.91787]
[1673648774515,14.77309595,1459.9,1459.4,0.066]
[1673648774723,14.77309595,1459.9,1459.4,3.0]
[1673648775126,14.77309595,1459.9,1459.4,9.85197]
[1673648775339,13.75592,1459.9,1459.4,16.7701]
[1673648776131,20.60588,1459.9,1459.4,3.066]
[1673648776436,6.85081,1459.7,1459.4,3.0]
[1673648776612,6.90681,1459.7,1459.4,3.0]
[1673648777275,13.75762,1459.7,1459.3,32.91682434]
[1673648777494,16.19422729,1459.7,1459.3,22.91682434]
[1673648777989,9.34341729,1459.7,1459.3,8.93932434]
[1673648778205,9.34341729,1459.7,1459.3,6.91828]
[1673648778394,23.04485729,1459.7,1459.3,0.066]
[1673648778590,9.34332729,1459.7,1459.3,9.85237]
[1673648778801,9.34332729,1459.7,1459.3,9.91837]
[1673648779012,2.49260729,1459.7,1459.3,9.91837]
[1673648779267,16.13836729,1459.7,1459.3,3.066]
[1673648779465,23.04539729,1459.7,1459.3,3.0]
[1673648781119,0.056,1459.7,1459.3,23.55767]
[1673648781381,6.85047,1459.8,1459.3,16.77107]
[1673648781540,0.056,1459.8,1459.3,23.62367]
[1673648781750,6.85037,1459.8,1459.3,23.62367]
[1673648781992,6.90637,1459.8,1459.3,23.62367]
[1673648783339,0.056,1459.8,1459.3,23.62367]
[1673648783569,14.77313595,1459.9,1459.3,23.62367]
[1673648783799,18.20696604,1459.9,1459.3,23.62367]
[1673648784108,11.35689604,1459.9,1459.3,23.62367]
[1673648784315,11.35692604,1459.9,1459.3,23.62367]
[1673648785275,10.33975009,1459.9,1459.3,23.62367]
[1673648785795,17.18967009,1459.9,1459.3,23.62367]
[1673648785969,17.18967009,1459.9,1459.3,23.62167]
[1673648786176,17.18967009,1459.9,1459.3,23.62367]
[1673648786404,17.18967009,1459.9,1459.3,3.066]
[1673648786405,3.66383009,1459.8,1459.3,3.066]
[1673648786584,7.21733301,1459.7,1459.3,16.70518]
[1673648786793,0.056,1459.7,1459.3,23.62378]
[1673648787037,10.57021009,1459.8,1459.3,23.62378]
[1673648787227,0.056,1459.8,1459.3,9.91858]
[1673648787576,6.85025,1459.8,1459.3,20.20501009]
[1673648787796,13.75684,1459.8,1459.3,20.20501009]
[1673648787944,20.60741,1459.8,1459.3,6.49983009]
[1673648788381,20.60741,1459.8,1459.3,3.066]
[1673648788591,23.35499323,1459.8,1459.3,3.0]
[1673648789263,13.75652,1459.8,1459.3,16.7052]
[1673648789429,13.75652,1459.8,1459.3,16.7712]
[1673648789854,13.75652,1459.8,1459.3,17.7712]
[1673648790474,13.7565,1459.8,1459.3,10.9186]
[1673648790679,13.7565,1459.8,1459.3,17.7712]
[1673648791374,13.7565,1459.8,1459.3,24.6238]
[1673648791533,13.7565,1459.8,1459.3,17.7712]
[1673648791742,6.90657,1459.8,1459.3,21.20503009]
[1673648792286,6.90657,1459.8,1459.3,28.05763009]
[1673648792463,6.90657,1459.8,1459.3,30.07867443]
[1673648793233,13.75684,1459.8,1459.3,23.22607443]
[1673648793424,13.75684,1459.8,1459.3,21.20503009]
[1673648793635,20.60711,1459.8,1459.3,21.20503009]
[1673648794262,20.60711,1459.8,1459.3,14.35243009]
[1673648794896,20.60711,1459.8,1459.3,7.49983009]
[1673648795105,20.60711,1459.8,1459.3,4.066]
[1673648795322,20.60711,1459.8,1459.3,24.5575]
[1673648795323,6.90627,1459.8,1459.3,24.5575]
[1673648795548,0.056,1459.8,1459.3,24.6235]
[1673648795716,13.70082,1459.8,1459.3,14.35213009]
[1673648795931,20.60723,1459.8,1459.3,7.49983009]
[1673648796143,20.60723,1459.8,1459.3,4.066]
[1673648796357,20.60723,1459.8,1459.3,14.70516]
[1673648796613,20.60723,1459.8,1459.4,3.0]
[1673648796826,13.75682,1459.8,1459.4,3.0]
[1673648797200,0.056,1459.8,1459.4,13.28591009]
[1673648797407,24.31459178,1460.2,1459.8,0.00150033]
[1673648797408,1.08117595,1460.2,1459.8,0.00150033]
[1673648797672,7.86783595,1460.2,1459.8,6.85168033]
[1673648797980,1.07317595,1460.2,1459.8,10.35151042]
[1673648798176,8.9253,1460.3,1459.9,3.0]
[1673648798386,0.056,1460.3,1459.9,9.8495]
[1673648798565,1.01717595,1460.4,1459.9,9.9155]
[1673648798984,7.86472595,1460.4,1459.9,9.9155]
[1673648799237,8.40722165,1460.4,1459.9,9.9155]
[1673648799453,1.07317595,1460.4,1459.9,20.19911009]
[1673648799767,1.01717595,1460.4,1459.9,20.19911009]
[1673648800169,7.86469595,1460.4,1459.9,20.19911009]
[1673648800348,7.92069595,1460.4,1459.9,20.19911009]
[1673648801035,7.92069595,1460.4,1459.9,27.04889009]
[1673648801821,1.07317595,1460.4,1459.9,27.04889009]
[1673648802084,1.01717595,1460.4,1459.9,27.04889009]
[1673648802605,32.0413516,1460.5,1459.9,27.04889009]
[1673648802819,32.0313516,1460.5,1459.9,27.04889009]
[1673648802970,6.84749,1460.4,1459.9,27.04889009]
[1673648803180,7.92066595,1460.4,1459.9,27.04889009]
[1673648803396,0.056,1460.4,1460.0,3.43383009]
[1673648803604,8.94658172,1460.5,1460.1,3.0]
[1673648804042,20.54249,1460.4,1460.0,10.066]
[1673648804263,25.04949604,1460.4,1460.0,0.066]
[1673648804497,25.54423928,1460.4,1459.9,12.9308]
[1673648804654,1.01717595,1460.3,1459.9,12.9308]
[1673648804864,6.84844,1460.2,1459.9,0.066]
[1673648805091,6.84844,1460.2,1459.8,6.91772033]
[1673648805092,6.90444,1460.2,1459.8,6.91772033]
[1673648805314,8.65311363,1460.2,1459.8,6.91772033]
[1673648805511,22.34992363,1460.2,1459.8,0.06750033]
[1673648805717,18.93531372,1460.2,1459.8,3.00150033]
[1673648805933,20.54793,1460.0,1459.8,0.00150033]
[1673648806253,2.054793,1459.9,1459.8,0.00150033]
[1673648806466,2.054793,1459.9,1459.4,33.45540424]
[1673648806467,0.00092915,1459.8,1459.4,33.45540424]
[1673648806768,0.00092915,1459.8,1459.4,8.93485902]
[1673648807402,0.00092915,1459.8,1459.4,2.08313902]
[1673648807610,13.70184915,1459.8,1459.4,3.0]
[1673648807841,13.70238,1459.6,1459.4,3.0]
[1673648808049,13.75838,1459.6,1459.4,3.0]
[1673648808274,6.90719,1459.6,1459.4,3.0]
[1673648809296,0.056,1459.6,1459.5,3.43383009]
[1673648809541,0.00092915,1459.8,1459.5,8.13325214]
[1673648809703,0.9341051,1460.1,1459.6,30.92911128]
[1673648809908,13.44399178,1460.3,1459.8,6.85001]
[1673648809909,10.45846393,1460.3,1459.8,6.85001]
[1673648810230,11.49902337,1460.3,1459.8,17.20009009]
[1673648810472,9.97325944,1460.3,1459.8,17.20009009]
[1673648810695,9.97325944,1460.3,1459.8,3.49983009]
[1673648811018,24.66912944,1460.3,1459.8,3.43383009]
[1673648811172,24.67756172,1460.3,1459.7,19.66655273]
[1673648811389,2.46775617,1460.2,1459.7,23.49466]
[1673648811639,2.46775617,1460.2,1459.7,30.34538]
[1673648811857,2.46775617,1460.2,1459.7,33.77921009]
[1673648812169,2.46775617,1460.2,1459.7,16.644]
[1673648812170,13.697,1460.2,1459.7,16.644]
[1673648812378,0.01443228,1460.2,1459.7,20.07783009]
[1673648812587,0.00843228,1460.2,1459.7,33.77927009]
[1673648813288,0.00843228,1460.2,1459.7,26.92855009]
[1673648813510,14.69352551,1460.2,1459.7,22.09784587]
[1673648813727,14.69352551,1460.2,1459.7,20.07783009]
[1673648813728,13.71141228,1460.2,1459.7,20.07783009]
[1673648813940,0.006,1460.2,1459.8,3.43383009]
[1673648814268,1.0,1460.3,1459.9,43.83268009]
[1673648814482,1.0,1460.3,1460.1,20.54652]
[1673648814724,1.0,1460.3,1460.2,3.0]
[1673648815726,1.0,1460.3,1460.2,9.84837]
[1673648816060,1.0,1460.3,1460.2,9.91437]
[1673648816546,1.0,1460.3,1460.2,3.066]
[1673648816758,1.0,1460.3,1460.1,3.066]
[1673648816986,1.0,1460.3,1460.1,6.84853]
[1673648817199,1.0,1460.3,1460.2,3.0]
[1673648817388,1.0,1460.3,1460.2,16.69674]
[1673648817603,1.0,1460.3,1460.2,16.76274]
[1673648817957,1.0,1460.3,1460.2,0.066]
[1673648817958,1.10843228,1460.3,1460.2,0.066]
[1673648818106,1.10843228,1460.3,1459.8,9.84986]
[1673648818317,1.00843228,1460.3,1459.8,3.49983009]
[1673648818580,14.70423228,1460.3,1459.7,16.66551065]
[1673648818744,14.71023228,1460.3,1459.7,13.644]
[1673648818949,21.55844228,1460.3,1459.7,13.644]
[1673648819387,23.08420621,1460.3,1459.7,13.644]
[1673648819600,23.08420621,1460.3,1459.8,3.0]
[1673648819601,16.00564062,1460.2,1459.8,3.0]
[1673648819800,0.00843228,1460.1,1459.8,3.0]
[1673648820210,6.85739228,1460.1,1459.7,13.644]
[1673648820420,6.85739228,1460.1,1459.7,0.066]
[1673648820421,13.71235228,1460.1,1459.7,0.066]
[1673648820626,0.68573923,1460.0,1459.6,0.09052119]
[1673648820858,7.53539923,1460.0,1459.6,0.09052119]
[1673648821200,17.82488932,1460.0,1459.6,0.09052119]
[1673648821441,3.43383009,1459.9,1459.6,0.09052119]
[1673648821580,13.7005,1459.8,1459.6,0.09052119]
[1673648821786,3.43983009,1459.8,1459.6,0.09052119]
[1673648822002,3.43383009,1459.8,1459.6,0.09052119]
[1673648822412,17.13456009,1459.8,1459.6,0.09052119]
[1673648822640,6.85629,1459.8,1459.6,0.09052119]
[1673648822964,15.94648289,1459.8,1459.6,0.09052119]
[1673648823935,19.38031298,1459.8,1459.6,0.09052119]
[1673648824151,0.006,1459.8,1459.6,6.94153119]
[1673648824307,1.78248893,1459.9,1459.6,7.00753119]
[1673648824515,1.78248893,1459.9,1459.6,13.85872119]
[1673648824516,5.21631902,1459.9,1459.6,13.85872119]
[1673648824776,0.006,1459.9,1459.6,0.15652119]
[1673648824999,8.90433228,1460.0,1459.6,0.09052119]
[1673648825209,19.18786237,1460.0,1459.6,0.09052119]
[1673648825371,26.03762237,1460.0,1459.6,0.09052119]
[1673648825774,32.88738237,1460.0,1459.6,0.09052119]
[1673648826202,3.28873824,1459.9,1459.6,0.09052119]
[1673648826772,6.84978,1459.9,1459.6,0.09052119]
[1673648826929,13.70556,1459.9,1459.6,0.09052119]
[1673648827353,6.85578,1459.9,1459.6,0.09052119]
[1673648827617,23.98942009,1459.9,1459.6,0.09052119]
[1673648827804,6.85888228,1459.8,1459.6,0.09052119]
[1673648828022,3.43383009,1459.7,1459.6,0.09052119]
[1673648829396,0.066,1459.8,1459.6,0.09052119]
[1673648829715,0.006,1459.9,1459.6,0.09052119]
[1673648829933,6.84981,1459.9,1459.6,0.09052119]
[1673648830123,6.85581,1459.9,1459.6,0.09052119]
[1673648830507,0.006,1459.9,1459.6,0.09052119]
[1673648830717,3.43383009,1459.8,1459.6,0.09052119]
[1673648830931,3.43383009,1459.8,1459.6,0.08717761]
[1673648830932,13.70144,1459.7,1459.6,0.08717761]
[1673648831172,16.10603001,1459.7,1459.6,0.08717761]
[1673648832450,26.3905801,1459.7,1459.6,0.08717761]
[1673648832662,0.006,1459.7,1459.6,0.08717761]
[1673648832833,0.006,1459.7,1459.6,0.03717761]
[1673648832834,6.85072,1459.7,1459.6,0.03717761]
[1673648833051,0.006,1459.7,1459.6,0.03717761]
[1673648833263,0.00843228,1459.9,1459.6,0.03717761]
[1673648834406,16.7685366,1460.0,1459.6,0.03717761]
[1673648834932,1.0291366,1460.0,1459.7,3.43383009]
[1673648835158,2.0891366,1460.2,1459.8,3.0]
[1673648835506,1.0,1460.2,1459.9,13.69947]
[1673648835664,2.0231366,1460.2,1459.9,13.76547]
[1673648835877,2.0231366,1460.2,1459.9,17.19930009]
[1673648835878,1.0,1460.2,1459.9,17.19930009]
[1673648836087,1.0,1460.2,1460.0,6.43383009]
[1673648836298,1.0,1460.3,1460.1,3.43383009]
[1673648836559,1.0,1460.3,1460.2,20.13057009]
[1673648836717,1.0,1460.3,1460.2,20.19657009]
[1673648837594,1.0,1460.3,1460.2,6.49783009]
[1673648837789,1.0,1460.3,1460.2,3.066]
[1673648838013,1.0,1460.3,1460.2,6.84837]
[1673648838189,1.0,1460.3,1460.2,9.91437]
[1673648838406,0.13658172,1460.5,1460.3,0.01884098]
[1673648838944,0.13658172,1460.5,1460.3,17.14839107]
[1673648839154,0.13658172,1460.5,1460.3,17.21439107]
[1673648839344,11.44059841,1460.5,1460.3,0.066]
[1673648839555,11.44059841,1460.5,1460.0,0.066]
[1673648839556,26.66638234,1460.5,1460.0,0.066]
[1673648839801,26.66638234,1460.5,1459.9,6.84935]
[1673648839802,2.66663823,1460.4,1459.9,6.84935]
[1673648839980,0.00843228,1460.3,1459.9,0.066]
[1673648840193,0.00843228,1460.3,1459.8,0.066]
[1673648840404,13.70453228,1460.3,1459.7,13.4368]
[1673648840713,2.43920999,1460.3,1459.7,13.4368]
[1673648840933,6.85646228,1460.3,1459.7,13.4368]
[1673648841184,13.71049228,1460.3,1459.8,3.0]
[1673648841374,14.73362888,1460.3,1459.8,3.0]
[1673648841582,25.01548897,1460.3,1459.8,3.0]
[1673648841805,6.84893,1460.1,1459.8,3.0]
[1673648841977,13.70386,1460.1,1459.6,0.10317761]
[1673648842196,13.70386,1460.1,1459.6,3.4710077]
[1673648842433,13.70386,1460.1,1459.7,3.0]
[1673648842613,6.85493,1460.1,1459.7,3.0]
[1673648843392,0.006,1460.1,1459.8,13.43383009]
[1673648843553,1.0231366,1460.3,1459.9,13.28361009]
[1673648843759,1.0231366,1460.3,1459.9,20.19939009]
[1673648844126,1.0231366,1460.3,1460.0,3.43383009]
[1673648844445,1.52576393,1460.4,1460.0,3.43383009]
[1673648844446,1.0231366,1460.4,1460.1,13.28267009]
[1673648844749,1.0231366,1460.4,1460.1,6.49983009]
[1673648845174,1.0231366,1460.4,1460.1,13.34863009]
[1673648845547,1.0231366,1460.4,1460.1,6.49983009]
[1673648846432,7.8707066,1460.4,1460.1,6.49983009]
[1673648846644,14.7242766,1460.4,1460.1,6.49983009]
[1673648846850,1.0291366,1460.4,1460.1,20.19748009]
[1673648847032,1.22571832,1460.5,1460.1,20.19748009]
[1673648847224,0.13658172,1460.5,1460.1,20.19748009]
[1673648848118,0.13658172,1460.5,1460.1,16.76365]
[1673648848327,0.13658172,1460.5,1460.1,3.066]
[1673648848328,13.839514,1460.5,1460.1,3.066]
[1673648848544,0.151014,1460.5,1460.1,10.28225009]
[1673648848696,13.839094,1460.5,1460.1,0.066]
[1673648849067,0.14258172,1460.5,1460.1,17.13150009]
[1673648849241,0.13658172,1460.5,1460.1,24.04634009]
[1673648850383,0.13658172,1460.5,1460.1,20.61251]
[1673648851134,0.6741506,1460.6,1460.1,24.04613009]
[1673648851495,0.6681506,1460.6,1460.3,13.69562]
[1673648851800,0.6681506,1460.6,1460.3,20.60943]
[1673648852114,7.5146506,1460.6,1460.3,0.066]
[1673648852327,21.2136906,1460.6,1460.2,0.02299878]
[1673648852645,26.28935605,1460.6,1460.2,0.02299878]
[1673648853162,26.28935605,1460.6,1460.1,0.066]
[1673648853374,13.69534,1460.4,1460.0,3.0]
[1673648853546,13.69685,1460.2,1459.9,3.066]
[1673648853747,13.70285,1460.2,1459.8,2.15281683]
[1673648853958,13.70285,1460.2,1459.7,34.76724522]
[1673648854198,13.70285,1460.2,1459.8,1.69892747]
[1673648854199,20.55132,1460.2,1459.8,1.69892747]
[1673648854538,20.55975228,1460.2,1459.8,1.69892747]
[1673648854693,20.55975228,1460.2,1459.9,3.43383009]
[1673648854694,0.006,1460.2,1459.9,3.43383009]
[1673648855051,0.06,1460.3,1459.9,3.43383009]
[1673648855052,6.84822,1460.3,1459.9,3.43383009]
[1673648855273,6.85422,1460.3,1459.9,3.43383009]
[1673648855425,6.85422,1460.3,1459.8,16.76568]
[1673648855426,6.85422,1460.3,1459.8,3.066]
[1673648855785,20.55845228,1460.3,1459.9,3.0]
[1673648856002,20.55845228,1460.3,1459.8,3.066]
[1673648856003,23.99228237,1460.3,1459.8,3.066]
[1673648856170,2.05584523,1460.2,1459.8,16.70024]
[1673648856385,3.50826237,1460.3,1459.8,23.61649]
[1673648856607,3.44226237,1460.3,1459.8,23.61649]
[1673648857110,3.44226237,1460.3,1459.8,9.91607]
[1673648857111,13.6963,1460.3,1459.8,9.91607]
[1673648857321,13.7023,1460.3,1459.8,9.91607]
[1673648857944,6.85415,1460.3,1459.8,9.91607]
[1673648858154,13.4523,1460.3,1459.8,9.91607]
[1673648858411,13.4523,1460.3,1459.8,3.066]
[1673648858586,16.88613009,1460.3,1459.8,3.0]
[1673648858800,23.73428009,1460.3,1459.8,3.0]
[1673648858992,13.69795,1460.1,1459.7,12.7199]
[1673648859203,13.70395,1460.1,1459.7,12.7199]
[1673648859417,20.55303,1460.1,1459.7,0.066]
[1673648859624,23.5365588,1460.1,1459.6,0.066]
[1673648859871,23.5365588,1460.1,1459.5,24.30947919]
[1673648860114,23.5365588,1460.1,1459.6,1.6991049]
[1673648860469,23.5365588,1460.1,1459.6,4.6991049]
[1673648860676,23.5365588,1460.1,1459.6,3.0]
[1673648861760,23.4365588,1460.1,1459.6,3.0]
[1673648862096,23.4365588,1460.1,1459.6,5.08656614]
[1673648862259,16.5874788,1460.1,1459.6,25.70583614]
[1673648862465,6.85486,1460.1,1459.7,3.43383009]
[1673648862674,0.006,1460.1,1459.8,3.0]
[1673648862889,20.55224,1460.2,1459.8,9.85009]
[1673648863211,13.70341,1460.2,1459.8,9.91609]
[1673648863413,6.85453,1460.2,1459.8,9.91609]
[1673648863623,13.70306,1460.2,1459.8,9.91409]
[1673648863922,15.06870346,1460.2,1459.8,9.91609]
[1673648864252,8.22017346,1460.2,1459.8,9.91609]
[1673648864463,8.22001346,1460.2,1459.8,9.9161]
[1673648864806,6.85439,1460.2,1459.8,16.76635]
[1673648864989,0.006,1460.2,1459.9,3.43383009]
[1673648865195,7.93562957,1460.5,1460.0,6.43383009]
[1673648865437,23.98094009,1460.5,1460.0,3.066]
[1673648865647,23.98937237,1460.5,1460.0,9.84924]
[1673648865861,3.44826237,1460.5,1460.0,23.61386]
[1673648866074,4.46472194,1460.5,1460.0,23.61386]
[1673648866284,1.03089185,1460.5,1460.0,23.61386]
[1673648866886,7.87813185,1460.5,1460.1,3.43383009]
[1673648867227,7.87813185,1460.5,1460.1,10.28233009]
[1673648867228,1.03689185,1460.5,1460.1,10.28233009]
[1673648867418,0.00843228,1460.5,1460.1,17.19717009]
[1673648867978,0.00843228,1460.5,1460.2,3.0]
[1673648868358,0.00843228,1460.5,1460.2,16.69657]
[1673648868570,0.00843228,1460.5,1460.2,16.76257]
[1673648868785,2.95927143,1460.6,1460.2,16.76257]
[1673648868786,2.95927143,1460.6,1460.3,3.43383009]
[1673648869119,2.5482235,1460.6,1460.3,17.12957009]
[1673648869342,1.02245957,1460.6,1460.3,17.19557009]
[1673648869496,2.5482235,1460.6,1460.3,17.19557009]
[1673648869966,2.5482235,1460.6,1460.3,6.91384]
[1673648870144,2.5482235,1460.6,1460.3,0.066]
[1673648870350,1.02245957,1460.6,1460.3,13.6958]
[1673648870591,1.02245957,1460.6,1460.3,0.066]
[1673648870592,1.02245957,1460.5,1460.3,0.066]
[1673648870832,1.02245957,1460.5,1460.2,6.84808]
[1673648870979,1.02245957,1460.5,1460.3,20.54312]
[1673648871192,1.02245957,1460.5,1460.3,20.60912]
[1673648871457,4.52228966,1460.6,1460.3,20.60912]
[1673648871650,5.26453021,1460.6,1460.3,20.60912]
[1673648871847,6.84697,1460.5,1460.3,0.066]
[1673648872026,6.85297,1460.5,1460.1,3.066]
[1673648872231,1.02845957,1460.5,1460.1,16.69765]
[1673648872474,1.02845957,1460.5,1460.1,16.76365]
[1673648872475,2.5482235,1460.5,1460.1,16.76365]
[1673648872691,2.5482235,1460.4,1460.1,16.76365]
[1673648873234,2.5482235,1460.3,1460.1,9.91481]
[1673648873392,1.02245957,1460.3,1460.1,0.066]
[1673648873754,2.5482235,1460.2,1459.9,13.6564]
[1673648874069,1.02245957,1460.2,1459.9,0.066]
[1673648874226,1.02245957,1460.1,1459.8,6.91618]
[1673648874652,1.02245957,1460.0,1459.8,6.91618]
[1673648874993,13.69882,1460.0,1459.8,0.066]
[1673648875177,13.70482,1460.0,1459.7,13.2395]
[1673648875393,0.006,1460.0,1459.7,20.08997]
[1673648875762,2.5482235,1460.1,1459.7,33.79116]
[1673648876115,1.02245957,1460.1,1459.7,33.79116]
[1673648876325,1.02245957,1460.1,1459.8,3.0]
[1673648876542,1.02245957,1460.1,1459.8,16.70015]
[1673648876792,1.02245957,1460.1,1459.8,23.6164]
[1673648877397,1.02245957,1460.1,1459.8,9.91592]
[1673648877605,7.87133957,1460.1,1459.8,3.066]
[1673648877837,7.87733957,1460.1,1459.8,3.0]
[1673648878050,7.87733957,1460.1,1459.8,23.55054]
[1673648878051,1.02845957,1460.1,1459.8,23.55054]
[1673648878217,1.02245957,1460.1,1459.8,23.61654]